bitfinex/quotes_SOLUSD_20220218
["timestamp","ask_amount","ask_price","bid_price","bid_amount"]
[1645157719672,1.49199291,94.525,94.482,24.15993855]
[1645157720172,1.49199291,94.526,94.482,24.15993855]
[1645157721897,1.49199291,94.525,94.482,24.15993855]
[1645157722093,1.49199291,94.524,94.482,24.15993855]
[1645157723995,1.49199291,94.525,94.482,24.15993855]
[1645157724297,1.49199291,94.524,94.482,24.15993855]
[1645157726203,1.49199291,94.524,94.49,15.8768]
[1645157726402,1.49199291,94.525,94.49,15.8768]
[1645157726599,1.49199291,94.526,94.49,15.8768]
[1645157727404,1.49199291,94.526,94.491,106.3]
[1645157727602,1.49199291,94.532,94.492,5.29]
[1645157727903,1.49199291,94.535,94.5,15.8726]
[1645157728101,1.49199291,94.539,94.501,24.4771]
[1645157728303,1.49199291,94.544,94.502,106.3]
[1645157728501,1.49199291,94.545,94.503,5.289]
[1645157728908,1.49199291,94.545,94.504,106.3]
[1645157729104,1.49199291,94.545,94.505,5.289]
[1645157729306,1.49199291,94.547,94.51,15.8719]
[1645157729505,1.49199291,94.547,94.511,5.289]
[1645157730204,1.49199291,94.546,94.511,5.289]
[1645157730411,1.49199291,94.549,94.511,5.289]
[1645157731413,1.49199291,94.55,94.511,5.289]
[1645157732312,1.49199291,94.556,94.511,5.289]
[1645157732508,15.8727,94.56,94.511,5.289]
[1645157732509,1.49199291,94.555,94.511,5.289]
[1645157732911,1.49199291,94.556,94.511,5.289]
[1645157733211,1.49199291,94.557,94.511,5.289]
[1645157734316,1.49199291,94.558,94.511,5.289]
[1645157734513,1.49199291,94.559,94.511,5.289]
[1645157735713,1.49199291,94.558,94.511,5.289]
[1645157736313,1.49199291,94.559,94.511,5.289]
[1645157737516,17.36469291,94.56,94.511,5.289]
[1645157738314,1.49199291,94.559,94.511,5.289]
[1645157738917,1.49199291,94.558,94.511,5.289]
[1645157740723,0.0001,94.56,94.52,15.8717]
[1645157741120,0.0001,94.56,94.521,5.288]
[1645157741620,0.0001,94.56,94.504,5.288]
[1645157741820,0.0001,94.56,94.53,15.8704]
[1645157743826,0.0001,94.56,94.52,15.8712]
[1645157744026,0.0001,94.56,94.521,5.288]
[1645157748564,0.0001,94.56,94.522,22.927]
[1645157748766,0.0001,94.56,94.523,5.288]
[1645157753078,15.8723,94.56,94.522,22.927]
[1645157754073,15.8723,94.56,94.48,52.911]
[1645157754074,1.49199291,94.559,94.503,5.288]
[1645157754276,1.49199291,94.548,94.503,5.288]
[1645157754511,1.49199291,94.544,94.493,5.289]
[1645157754774,1.49199291,94.539,94.461,5.289]
[1645157754973,22.9735,94.559,94.462,77.46976265]
[1645157754974,1.49199291,94.534,94.462,77.46976265]
[1645157755174,1.49199291,94.533,94.463,5.29]
[1645157756475,15.8795,94.52,94.47,15.8798]
[1645157756676,15.8795,94.52,94.471,5.29]
[1645157760885,15.8795,94.52,94.48,15.8787]
[1645157761284,15.8795,94.52,94.481,5.291]
[1645157766287,15.8773,94.53,94.49,15.877]
[1645157766714,15.8773,94.53,94.491,5.29]
[1645157767112,1.49199291,94.547,94.492,9.08360201]
[1645157767312,68.64417165,94.549,94.493,23.7185]
[1645157767512,68.64417165,94.549,94.493,29.0075]
[1645157767914,15.8754,94.54,94.493,29.0075]
[1645157769714,15.8754,94.54,94.5,15.8755]
[1645157769916,15.8754,94.54,94.501,5.289]
[1645157775121,15.8754,94.54,94.503,0.2848862]
[1645157775922,15.8754,94.54,94.504,5.289]
[1645157776126,22.9782,94.549,94.51,15.8737]
[1645157776321,15.8737,94.55,94.511,5.289]
[1645157778226,15.8737,94.55,94.511,29.1363]
[1645157780834,15.8737,94.55,94.513,0.28472494]
[1645157785156,15.8737,94.55,94.511,29.1363]
[1645157789461,17.36569291,94.55,94.511,29.1363]
[1645157790962,1.49199291,94.549,94.511,29.1363]
[1645157792968,15.8737,94.55,94.511,29.1363]
[1645157793367,17.36569291,94.55,94.511,29.1363]
[1645157795269,1.49199291,94.549,94.511,29.1363]
[1645157795475,17.36569291,94.55,94.511,29.1363]
[1645157796669,1.49199291,94.549,94.511,29.1363]
[1645157797972,1.49199291,94.55,94.511,29.1363]
[1645157798171,1.49199291,94.554,94.511,29.1363]
[1645157798371,1.49199291,94.552,94.511,29.1363]
[1645157798573,1.49199291,94.553,94.511,29.1363]
[1645157798773,1.49199291,94.552,94.511,29.1363]
[1645157798976,1.49199291,94.549,94.511,23.8473]
[1645157799578,1.49199291,94.549,94.512,5.289]
[1645157799878,17.36539291,94.55,94.512,5.289]
[1645157800676,1.49199291,94.549,94.511,29.1363]
[1645157800976,17.36539291,94.55,94.511,29.1363]
[1645157801174,15.8734,94.55,94.511,29.1363]
[1645157805681,1.49199291,94.544,94.511,23.8473]
[1645157805882,1.49199291,94.542,94.511,23.8473]
[1645157806124,15.8763,94.54,94.511,23.8473]
[1645157808284,1.49199291,94.539,94.511,23.8473]
[1645157808484,15.8768,94.53,94.511,23.8473]
[1645157809338,15.8768,94.53,94.47,52.9215]
[1645157809339,15.8768,94.53,94.475,5.289]
[1645157809492,52.02536791,94.538,94.371,5.79055101]
[1645157809493,15.8796,94.52,94.463,5.29]
[1645157809687,24.0818,94.519,94.461,5.29]
[1645157810088,1.49199291,94.517,94.461,5.29]
[1645157810286,1.49199291,94.517,94.462,53.3800125]
[1645157810487,1.49199291,94.517,94.463,29.194]
[1645157810689,15.8822,94.51,94.463,29.194]
[1645157811887,15.8822,94.51,94.463,5.291]
[1645157815494,15.8841,94.5,94.463,5.291]
[1645157815698,15.8841,94.5,94.441,5.292]
[1645157815896,15.8841,94.5,94.439,5.292]
[1645157817102,15.8841,94.5,94.44,49.68674109]
[1645157817297,15.8841,94.5,94.441,5.292]
[1645157821124,21.3341,94.5,94.441,5.292]
[1645157822523,21.3341,94.5,94.438,23.8052]
[1645157822524,106.3,94.499,94.438,5.292]
[1645157822723,106.3,94.489,94.438,5.292]
[1645157822926,106.3,94.489,94.402,5.292]
[1645157823123,106.3,94.487,94.402,5.292]
[1645157823523,106.3,94.485,94.403,45.76990263]
[1645157823723,15.8905,94.48,94.404,5.292]
[1645157830535,15.8905,94.48,94.46,0.00926284]
[1645157830752,106.3,94.479,94.46,0.00926284]
[1645157830931,15.8905,94.48,94.46,0.00926284]
[1645157830932,15.8907,94.47,94.46,0.00926284]
[1645157831132,23.572,94.469,94.46,0.00926284]
[1645157831932,106.3,94.468,94.46,0.00926284]
[1645157836239,23.572,94.469,94.404,5.293]
[1645157836434,15.8936,94.45,94.403,5.293]
[1645157836642,67.02895441,94.45,94.403,5.293]
[1645157837437,106.3,94.449,94.402,5.295]
[1645157837739,15.896,94.44,94.385,5.295]
[1645157837937,15.896,94.44,94.376,5.295]
[1645157838339,15.896,94.44,94.377,44.61439633]
[1645157838539,15.896,94.44,94.378,5.296]
[1645157838738,15.896,94.44,94.379,23.0275]
[1645157838941,15.896,94.44,94.38,5.296]
[1645157840339,106.3,94.419,94.362,5.296]
[1645157840545,15.8998,94.42,94.34,5.296]
[1645157840743,42.12778976,94.417,94.34,38.78738293]
[1645157840948,42.12778976,94.417,94.346,5.296]
[1645157841142,23.0348,94.418,94.346,5.296]
[1645157842141,53.02814537,94.417,94.346,5.296]
[1645157842365,15.9026,94.41,94.346,5.296]
[1645157843342,15.9026,94.41,94.347,2.65377253]
[1645157843546,15.9026,94.41,94.348,5.297]
[1645157844644,15.9026,94.41,94.347,2.65377253]
[1645157844842,15.9026,94.41,94.345,0.227843]
[1645157847848,15.9026,94.41,94.346,5.297]
[1645157850952,106.3,94.409,94.346,5.297]
[1645157851154,15.9024,94.4,94.346,5.297]
[1645157853771,106.3,94.399,94.375,0.00308]
[1645157853974,15.9031,94.39,94.375,0.00308]
[1645157854173,106.3,94.388,94.375,0.00308]
[1645157854772,2.65377253,94.387,94.375,0.00308]
[1645157856773,106.3,94.388,94.375,0.00308]
[1645157859476,15.9125,94.38,94.375,0.50308]
[1645157859677,106.3,94.377,94.345,0.227843]
[1645157859875,106.3,94.369,94.345,0.227843]
[1645157860678,15.9125,94.36,94.345,0.227843]
[1645157862481,106.3,94.359,94.345,0.227843]
[1645157869088,130.6833,94.359,94.345,0.227843]
[1645157869298,130.6833,94.359,94.345,0.007843]
[1645157869487,40.0,94.357,94.297,5.299]
[1645157869688,106.3,94.349,94.336,0.0045984]
[1645157869888,106.3,94.347,94.336,0.0045984]
[1645157870789,2.65377253,94.346,94.336,0.0045984]
[1645157871794,2.65377253,94.346,94.336,0.0091968]
[1645157872292,2.65377253,94.346,94.272,29.0144]
[1645157872490,106.3,94.339,94.272,29.0144]
[1645157872693,106.3,94.329,94.272,29.0144]
[1645157872892,15.35,94.32,94.272,5.299]
[1645157873092,106.3,94.319,94.272,5.299]
[1645157873291,106.3,94.319,94.271,0.52513384]
[1645157874297,2.65377253,94.318,94.271,0.52513384]
[1645157874496,2.65377253,94.318,94.272,5.301]
[1645157874693,106.3,94.319,94.272,5.301]
[1645157875897,106.3,94.319,94.271,0.52513384]
[1645157876494,106.3,94.319,94.305,0.00820056]
[1645157878197,106.3,94.317,94.305,0.53640112]
[1645157878399,106.3,94.309,94.271,0.52513384]
[1645157878598,106.3,94.299,94.271,0.52513384]
[1645157878835,15.35,94.3,94.271,0.52513384]
[1645157879002,22.35,94.33,94.287,5.301]
[1645157879203,7.0,94.33,94.287,5.301]
[1645157879402,15.9158,94.32,94.287,7.95477253]
[1645157879603,1.49199291,94.341,94.287,5.301]
[1645157879802,1.49199291,94.341,94.29,15.9092]
[1645157880002,43.73754848,94.345,94.291,5.301]
[1645157884006,43.73754848,94.345,94.29,15.9092]
[1645157884406,15.9097,94.35,94.29,15.9092]
[1645157884607,15.9076,94.36,94.3,15.9074]
[1645157885415,44.85473128,94.359,94.3,15.9074]
[1645157887024,44.85473128,94.359,94.287,5.3]
[1645157887025,15.9093,94.35,94.29,15.9093]
[1645157888626,15.9093,94.35,94.287,5.3]
[1645157888826,15.9093,94.35,94.286,23.2553928]
[1645157890126,106.3,94.349,94.286,23.2553928]
[1645157890327,106.3,94.339,94.286,23.2553928]
[1645157891027,106.3,94.337,94.286,23.2553928]
[1645157891428,15.9152,94.33,94.286,23.2553928]
[1645157893728,15.9152,94.33,94.286,0.0589928]
[1645157896534,106.3,94.329,94.286,0.0589928]
[1645157896740,55.19806507,94.338,94.286,0.0589928]
[1645157896741,106.3,94.319,94.286,0.0589928]
[1645157896937,50.7220106,94.318,94.286,0.0589928]
[1645157897637,15.9176,94.31,94.286,0.0589928]
[1645157898938,1.49199291,94.337,94.286,0.0589928]
[1645157899163,1.49199291,94.342,94.286,0.0589928]
[1645157899339,1.49199291,94.343,94.286,0.0589928]
[1645157899737,54.29733733,94.342,94.286,0.0589928]
[1645157900339,15.9117,94.33,94.286,0.0589928]
[1645157900539,54.29733733,94.342,94.286,0.0589928]
[1645157901043,1.49199291,94.348,94.286,0.0589928]
[1645157901241,1.49199291,94.351,94.286,0.0589928]
[1645157901642,1.49199291,94.35,94.286,0.0589928]
[1645157901842,46.27368943,94.349,94.286,0.0589928]
[1645157902341,15.9098,94.34,94.29,15.9098]
[1645157908548,15.9098,94.34,94.287,5.301]
[1645157910552,15.9098,94.34,94.286,0.0589928]
[1645157913153,15.9098,94.34,94.291,10.99101158]
[1645157915255,15.9098,94.34,94.29,15.9102]
[1645157916257,15.9098,94.34,94.291,47.44921209]
[1645157916456,15.9098,94.34,94.291,52.75021209]
[1645157916656,47.76568234,94.349,94.3,15.908]
[1645157916657,46.27368943,94.349,94.3,15.908]
[1645157916857,46.27368943,94.349,94.301,5.3]
[1645157917457,15.908,94.35,94.301,5.3]
[1645157917658,15.908,94.35,94.292,5.3]
[1645157917859,1.49199291,94.366,94.292,111.6]
[1645157918060,1.49199291,94.367,94.31,15.9068]
[1645157918258,1.49199291,94.371,94.311,29.3921]
[1645157918459,46.53172969,94.377,94.311,46.85532622]
[1645157918659,45.03973678,94.377,94.312,2.65377253]
[1645157918863,45.03973678,94.377,94.313,5.299]
[1645157919265,45.03973678,94.377,94.314,2.65377253]
[1645157919563,45.03973678,94.377,94.32,15.9036]
[1645157919963,45.03973678,94.377,94.321,7.95277253]
[1645157920385,45.03973678,94.377,94.321,5.299]
[1645157921393,45.03973678,94.377,94.33,15.9018]
[1645157921592,45.03973678,94.377,94.331,5.299]
[1645157922398,15.9026,94.38,94.34,15.902]
[1645157922792,15.9026,94.38,94.341,5.298]
[1645157923693,54.68658467,94.379,94.341,5.298]
[1645157924996,54.68658467,94.379,94.34,15.902]
[1645157927101,15.901,94.39,94.34,15.902]
[1645157927302,15.901,94.39,94.341,22.8679]
[1645157928402,40.68049598,94.389,94.341,22.8679]
[1645157928601,15.9022,94.38,94.341,22.8679]
[1645157935611,15.9022,94.38,94.32,15.9048]
[1645157935815,15.9022,94.38,94.321,22.5923]
[1645157936612,15.9022,94.38,94.322,5.299]
[1645157937517,15.9022,94.38,94.321,22.5923]
[1645157940232,15.9022,94.38,94.33,122.2034]
[1645157940749,15.8998,94.39,94.331,5.299]
[1645157940936,15.8998,94.39,94.333,106.3]
[1645157941535,15.8998,94.39,94.335,106.3]
[1645157941735,15.8998,94.39,94.336,5.298]
[1645157942337,15.8998,94.39,94.34,122.2001]
[1645157942736,15.8998,94.39,94.341,5.298]
[1645157944440,15.8998,94.39,94.351,18.15093101]
[1645157944642,15.8998,94.39,94.352,5.298]
[1645157947357,15.8998,94.39,94.36,15.8987]
[1645157949069,1.49199291,94.395,94.361,5.298]
[1645157949462,1.49199291,94.398,94.37,15.8971]
[1645157949664,1.49199291,94.399,94.37,15.8971]
[1645157949863,17.39019291,94.4,94.371,44.10773477]
[1645157950084,1.49199291,94.4,94.371,44.10773477]
[1645157950268,1.49199291,94.4,94.372,5.297]
[1645157950466,1.49199291,94.406,94.372,5.297]
[1645157950865,1.49199291,94.409,94.372,5.297]
[1645157951266,1.49199291,94.408,94.372,5.297]
[1645157951467,1.49199291,94.409,94.372,5.297]
[1645157952477,15.8966,94.41,94.372,5.297]
[1645157952672,17.38859291,94.41,94.372,5.297]
[1645157952876,15.8966,94.41,94.372,5.297]
[1645157954378,1.49199291,94.417,94.38,15.8952]
[1645157954577,15.8952,94.42,94.381,23.9258]
[1645157955585,1.49199291,94.424,94.381,23.9258]
[1645157955780,1.49199291,94.425,94.381,23.9258]
[1645157956080,1.49199291,94.434,94.39,122.1935]
[1645157956282,1.49199291,94.436,94.39,122.1935]
[1645157956483,1.49199291,94.437,94.391,5.295]
[1645157956682,1.49199291,94.437,94.393,106.3]
[1645157956882,7.0,94.49,94.392,24.1949]
[1645157956883,1.49199291,94.44,94.401,106.3]
[1645157957085,1.49199291,94.454,94.401,122.1275]
[1645157957282,1.49199291,94.464,94.402,5.295]
[1645157957584,1.49199291,94.469,94.404,106.3]
[1645157957832,1.49199291,94.469,94.405,28.6616]
[1645157958094,1.49199291,94.47,94.41,122.186]
[1645157958394,1.49199291,94.47,94.412,106.3]
[1645157958598,1.49199291,94.47,94.413,5.293]
[1645157958798,1.49199291,94.475,94.413,5.293]
[1645157958996,1.49199291,94.475,94.414,24.8285]
[1645157959198,1.49199291,94.475,94.415,5.293]
[1645157959398,1.49199291,94.475,94.42,15.8859]
[1645157959599,1.49199291,94.476,94.421,5.293]
[1645157959999,1.49199291,94.479,94.421,5.293]
[1645157960198,1.49199291,94.479,94.415,5.293]
[1645157960601,58.73121588,94.48,94.415,5.293]
[1645157960802,57.23922297,94.48,94.415,5.293]
[1645157961405,57.23922297,94.48,94.43,15.8856]
[1645157961602,57.23922297,94.48,94.431,5.293]
[1645157962603,15.8868,94.48,94.431,5.293]
[1645157962804,1.49199291,94.485,94.44,15.8842]
[1645157963004,1.49199291,94.487,94.44,15.8842]
[1645157963203,17.37619291,94.49,94.44,15.8842]
[1645157963604,47.20904103,94.489,94.44,15.8842]
[1645157964309,15.8858,94.48,94.411,5.292]
[1645157964507,15.8858,94.48,94.406,5.293]
[1645157964705,106.3,94.479,94.393,5.293]
[1645157964906,1.49199291,94.476,94.381,16.2319]
[1645157965117,1.49199291,94.475,94.383,43.34513159]
[1645157965308,39.55895995,94.473,94.384,5.293]
[1645157965507,24.1728,94.472,94.384,5.293]
[1645157965905,25.66479291,94.472,94.384,5.293]
[1645157966407,15.8908,94.46,94.4,34.80393419]
[1645157967809,15.8908,94.46,94.401,24.1883]
[1645157971415,15.8908,94.46,94.41,15.8892]
[1645157971619,15.8871,94.47,94.411,5.293]
[1645157971817,1.49199291,94.485,94.411,7.94677253]
[1645157972016,1.49199291,94.485,94.413,106.3]
[1645157972214,1.49199291,94.484,94.414,5.293]
[1645157972417,1.49199291,94.484,94.42,15.8863]
[1645157972619,50.47398273,94.483,94.421,5.293]
[1645157972818,15.8854,94.48,94.421,5.293]
[1645157973020,15.8854,94.48,94.416,5.293]
[1645157973418,15.8854,94.48,94.415,43.34513159]
[1645157973618,1.49199291,94.477,94.415,43.34513159]
[1645157973818,15.8879,94.47,94.42,15.8873]
[1645157975720,15.8879,94.47,94.421,5.293]
[1645157978455,15.8879,94.47,94.43,15.8864]
[1645157978653,15.8879,94.47,94.431,18.91353419]
[1645157980007,17.37989291,94.47,94.431,18.91353419]
[1645157980755,1.49199291,94.469,94.431,18.91353419]
[1645157980958,1.49199291,94.468,94.431,18.91353419]
[1645157981557,1.49199291,94.467,94.431,18.91353419]
[1645157982457,1.49199291,94.467,94.42,15.8874]
[1645157982859,15.8881,94.46,94.413,5.293]
[1645157983263,1.49199291,94.456,94.413,5.293]
[1645157983659,1.49199291,94.454,94.413,5.293]
[1645157984062,1.49199291,94.455,94.413,5.293]
[1645157984462,1.49199291,94.456,94.413,5.293]
[1645157984664,1.49199291,94.455,94.413,5.293]
[1645157984863,1.49199291,94.451,94.413,5.293]
[1645157985065,1.49199291,94.452,94.413,5.293]
[1645157985463,15.8898,94.45,94.413,5.293]
[1645157985865,1.49199291,94.449,94.42,15.8881]
[1645157986064,1.49199291,94.459,94.42,15.8881]
[1645157986364,1.49199291,94.46,94.421,5.293]
[1645157986564,1.49199291,94.46,94.414,5.293]
[1645157986765,15.8869,94.47,94.413,5.293]
[1645157986766,1.49199291,94.459,94.413,5.293]
[1645157986965,1.49199291,94.453,94.413,5.293]
[1645157987167,1.49199291,94.456,94.413,5.293]
[1645157987971,1.49199291,94.457,94.413,5.293]
[1645157988368,1.49199291,94.457,94.42,15.8877]
[1645157988568,1.49199291,94.456,94.421,5.293]
[1645157989970,1.49199291,94.455,94.421,5.293]
[1645157991071,1.49199291,94.455,94.43,15.8865]
[1645157991470,1.49199291,94.456,94.43,15.8865]
[1645157991674,1.49199291,94.458,94.43,15.8865]
[1645157992071,1.49199291,94.457,94.431,17.74401357]
[1645157993572,1.49199291,94.455,94.431,17.74401357]
[1645157993974,1.49199291,94.455,94.431,23.03701357]
[1645157994176,1.49199291,94.456,94.44,15.8851]
[1645157994376,1.49199291,94.461,94.441,5.293]
[1645157994582,1.49199291,94.464,94.441,5.293]
[1645157994777,1.49199291,94.463,94.44,15.8851]
[1645157994976,1.49199291,94.464,94.441,5.293]
[1645157995275,1.49199291,94.465,94.441,5.293]
[1645157995676,1.49199291,94.464,94.441,5.293]
[1645157995876,1.49199291,94.463,94.441,5.293]
[1645157996078,1.49199291,94.462,94.44,15.8851]
[1645157996277,1.49199291,94.461,94.44,15.8851]
[1645157996680,1.49199291,94.464,94.44,15.8851]
[1645157997078,1.49199291,94.46,94.44,15.8851]
[1645157997281,1.49199291,94.462,94.44,15.8851]
[1645157997581,1.49199291,94.461,94.44,15.8851]
[1645157997785,1.49199291,94.46,94.44,15.8851]
[1645157997980,1.49199291,94.461,94.44,15.8851]
[1645157998179,1.49199291,94.462,94.44,15.8851]
[1645157998382,1.49199291,94.461,94.44,15.8851]
[1645157998580,1.49199291,94.462,94.44,15.8851]
[1645157998981,1.49199291,94.461,94.44,15.8851]
[1645157999188,1.49199291,94.46,94.44,15.8851]
[1645157999581,1.49199291,94.461,94.44,15.8851]
[1645157999784,1.49199291,94.468,94.44,15.8851]
[1645157999983,1.49199291,94.469,94.44,15.8851]
[1645158000184,1.49199291,94.468,94.44,15.8851]
[1645158000783,1.49199291,94.471,94.44,15.8851]
[1645158000985,1.49199291,94.472,94.44,15.8851]
[1645158001185,1.49199291,94.472,94.45,15.8823]
[1645158001386,1.49199291,94.473,94.45,15.8823]
[1645158001585,1.49199291,94.473,94.451,5.292]
[1645158001784,1.49199291,94.474,94.451,5.292]
[1645158002388,15.8833,94.49,94.451,5.292]
[1645158002389,1.49199291,94.473,94.451,5.292]
[1645158002584,1.49199291,94.474,94.46,15.882]
[1645158003312,1.49199291,94.474,94.461,5.292]
[1645158003514,1.49199291,94.475,94.461,5.292]
[1645158003712,1.49199291,94.476,94.46,15.882]
[1645158003911,1.49199291,94.475,94.46,15.882]
[1645158006715,1.49199291,94.476,94.46,15.882]
[1645158007516,1.49199291,94.475,94.46,15.882]
[1645158007714,1.49199291,94.476,94.46,15.882]
[1645158007914,1.49199291,94.475,94.46,15.882]
[1645158008716,1.49199291,94.476,94.46,15.882]
[1645158011521,1.49199291,94.475,94.46,15.882]
[1645158011920,1.49199291,94.483,94.46,15.882]
[1645158012325,1.49199291,94.486,94.46,15.882]
[1645158012720,1.49199291,94.487,94.46,60.80998959]
[1645158013021,1.49199291,94.487,94.47,15.8798]
[1645158013721,1.49199291,94.488,94.47,15.8798]
[1645158014422,1.49199291,94.489,94.47,15.8798]
[1645158014620,1.49199291,94.488,94.47,15.8798]
[1645158015423,1.49199291,94.487,94.47,15.8798]
[1645158015826,1.49199291,94.486,94.47,15.8798]
[1645158017428,1.49199291,94.487,94.47,15.8798]
[1645158017831,1.49199291,94.486,94.47,15.8798]
[1645158019628,1.49199291,94.485,94.47,15.8798]
[1645158021632,1.49199291,94.487,94.47,15.8798]
[1645158022634,1.49199291,94.486,94.47,15.8798]
[1645158023036,1.49199291,94.487,94.47,15.8798]
[1645158023836,1.49199291,94.486,94.47,15.8798]
[1645158024045,1.49199291,94.486,94.462,5.292]
[1645158024240,1.49199291,94.486,94.431,24.2731]
[1645158024437,1.49199291,94.488,94.431,24.2731]
[1645158024637,1.49199291,94.478,94.431,24.2731]
[1645158024837,1.49199291,94.476,94.431,24.2731]
[1645158025238,1.49199291,94.475,94.431,24.2731]
[1645158025437,1.49199291,94.472,94.431,24.2731]
[1645158025641,1.49199291,94.473,94.431,24.2731]
[1645158025836,1.49199291,94.472,94.431,24.2731]
[1645158026038,1.49199291,94.469,94.431,24.2731]
[1645158026838,1.49199291,94.468,94.431,24.2731]
[1645158027238,1.49199291,94.467,94.431,24.2731]
[1645158027440,15.8871,94.46,94.431,24.2731]
[1645158029073,1.49199291,94.467,94.431,24.2731]
[1645158029276,1.49199291,94.481,94.432,106.3]
[1645158029670,1.49199291,94.482,94.433,2.65377253]
[1645158029870,1.49199291,94.485,94.433,2.65377253]
[1645158030071,1.49199291,94.487,94.433,2.65377253]
[1645158030272,1.49199291,94.488,94.44,15.8839]
[1645158030672,1.49199291,94.489,94.44,15.8839]
[1645158031072,1.49199291,94.489,94.441,106.3]
[1645158031376,1.49199291,94.487,94.45,15.8803]
[1645158031573,1.49199291,94.49,94.452,106.3]
[1645158031779,1.49199291,94.49,94.453,5.292]
[1645158032371,1.49199291,94.49,94.454,10.50493555]
[1645158032570,1.49199291,94.49,94.455,5.292]
[1645158032870,1.49199291,94.491,94.455,5.292]
[1645158033371,1.49199291,94.491,94.46,15.8799]
[1645158033772,1.49199291,94.491,94.461,5.26566384]
[1645158034178,1.49199291,94.492,94.461,5.26566384]
[1645158035272,1.49199291,94.489,94.452,5.292]
[1645158035475,1.49199291,94.483,94.452,5.292]
[1645158035675,1.49199291,94.482,94.451,22.9644]
[1645158035873,1.49199291,94.482,94.452,5.292]
[1645158036072,1.49199291,94.484,94.452,5.292]
[1645158036272,1.49199291,94.486,94.46,15.8813]
[1645158036473,1.49199291,94.487,94.46,15.8813]
[1645158036674,1.49199291,94.485,94.452,5.292]
[1645158036875,1.49199291,94.471,94.39,26.41207293]
[1645158037078,1.49199291,94.466,94.406,23.2128]
[1645158037289,15.8872,94.46,94.42,15.8868]
[1645158037473,70.40035173,94.46,94.42,15.8868]
[1645158043631,70.40035173,94.46,94.331,4.05057856]
[1645158043632,1.49199291,94.456,94.386,15.7973]
[1645158043782,15.8913,94.44,94.38,52.9641]
[1645158043982,15.8913,94.44,94.381,23.9945]
[1645158044381,15.8913,94.44,94.382,45.27119295]
[1645158045382,15.8913,94.44,94.4,15.8905]
[1645158047985,15.8896,94.45,94.4,15.8905]
[1645158049988,15.8896,94.45,94.39,15.8919]
[1645158050390,17.38159291,94.45,94.39,15.8919]
[1645158050591,15.8896,94.45,94.39,15.8919]
[1645158055592,15.8896,94.45,94.391,2.65377253]
[1645158055992,15.8896,94.45,94.4,15.8908]
[1645158056193,15.8896,94.45,94.401,22.6284]
[1645158056395,15.8896,94.45,94.402,5.295]
[1645158067302,17.38159291,94.45,94.402,5.295]
[1645158067502,15.8896,94.45,94.402,5.295]
[1645158067902,17.38159291,94.45,94.402,5.295]
[1645158069802,1.49199291,94.449,94.402,5.295]
[1645158070007,15.8914,94.44,94.402,5.295]
[1645158079157,17.38159291,94.45,94.41,15.89]
[1645158079347,15.8896,94.45,94.41,15.89]
[1645158081044,15.8896,94.45,94.402,5.295]
[1645158085951,17.38159291,94.45,94.402,5.295]
[1645158086856,17.38159291,94.45,94.41,15.8902]
[1645158087052,15.8896,94.45,94.41,15.8902]
[1645158087652,17.38159291,94.45,94.41,15.8902]
[1645158088056,15.8896,94.45,94.41,15.8902]
[1645158088758,17.38159291,94.45,94.41,15.8902]
[1645158089392,15.8896,94.45,94.41,15.8902]
[1645158094092,15.8896,94.45,94.402,5.293]
[1645158094291,17.38159291,94.45,94.402,5.293]
[1645158097900,15.8896,94.45,94.402,5.293]
[1645158098296,15.4996,94.45,94.402,5.293]
[1645158098508,16.99159291,94.45,94.402,5.293]
[1645158099904,1.49199291,94.449,94.402,5.293]
[1645158100100,15.8921,94.44,94.402,5.293]
[1645158106505,15.8921,94.44,94.41,15.8905]